Workbook

Sheet sheet1
A1: 序号 | B1: 考生准考证号 | C1: 岗位代码 | D1: 单位名称 | E1: 岗位名称 | F1: 职测分数 | G1: 综合分数 | H1: 笔试成绩 | I1: 笔试环节成绩（笔试成绩÷3） | J1: 是否进入现场资格复审
A2: 1 | B2: 1152230302322 | C2: 22322420101 | D2: 中共兴仁市委组织部 | E2: 市委党的建设服务中心 | F2: 94.5 | G2: 111 | H2: 205.5 | I2: =H2/3 -> 68.50 | J2: 是
A3: 2 | B3: 1152230303115 | C3: 22322420101 | D3: 中共兴仁市委组织部 | E3: 市委党的建设服务中心 | F3: 104 | G3: 101 | H3: 205 | I3: =H3/3 -> 68.33 | J3: 是
A4: 3 | B4: 1152230303930 | C4: 22322420101 | D4: 中共兴仁市委组织部 | E4: 市委党的建设服务中心 | F4: 98.5 | G4: 105 | H4: 203.5 | I4: 67.83 | J4: 是
A5: 4 | B5: 1152230303924 | C5: 22322420101 | D5: 中共兴仁市委组织部 | E5: 市委党的建设服务中心 | F5: 100 | G5: 97 | H5: 197 | I5: 65.67 | J5: 是
A6: 5 | B6: 1152230302711 | C6: 22322420101 | D6: 中共兴仁市委组织部 | E6: 市委党的建设服务中心 | F6: 94.5 | G6: 101 | H6: 195.5 | I6: 65.17 | J6: 是
A7: 6 | B7: 1152230305317 | C7: 22322420101 | D7: 中共兴仁市委组织部 | E7: 市委党的建设服务中心 | F7: 93.5 | G7: 100 | H7: 193.5 | I7: 64.50 | J7: 是
A8: 7 | B8: 1152230301330 | C8: 22322420201 | D8: 中共兴仁市委宣传部 | E8: 网络安全和信息化中心 | F8: 95.5 | G8: 112 | H8: 207.5 | I8: =H8/3 -> 69.17 | J8: 是
A9: 8 | B9: 1152230302620 | C9: 22322420201 | D9: 中共兴仁市委宣传部 | E9: 网络安全和信息化中心 | F9: 102.5 | G9: 105 | H9: 207.5 | I9: =H9/3 -> 69.17 | J9: 是
A10: 9 | B10: 1152230302012 | C10: 22322420201 | D10: 中共兴仁市委宣传部 | E10: 网络安全和信息化中心 | F10: 87.5 | G10: 109 | H10: 196.5 | I10: 65.50 | J10: 是
A11: 10 | B11: 1152230304826 | C11: 22322420201 | D11: 中共兴仁市委宣传部 | E11: 网络安全和信息化中心 | F11: 108 | G11: 88.5 | H11: 196.5 | I11: 65.50 | J11: 是
A12: 11 | B12: 1152230303613 | C12: 22322420301 | D12: 兴仁市发展和改革局 | E12: 兴仁市大数据产业发展中心 | F12: 109 | G12: 106.5 | H12: 215.5 | I12: =H12/3 -> 71.83 | J12: 是
A13: 12 | B13: 1152230304601 | C13: 22322420301 | D13: 兴仁市发展和改革局 | E13: 兴仁市大数据产业发展中心 | F13: 111.5 | G13: 102 | H13: 213.5 | I13: 71.17 | J13: 是
A14: 13 | B14: 1152230304021 | C14: 22322420301 | D14: 兴仁市发展和改革局 | E14: 兴仁市大数据产业发展中心 | F14: 105 | G14: 101 | H14: 206 | I14: 68.67 | J14: 是
A15: 14 | B15: 1152230305218 | C15: 22322420401 | D15: 兴仁市司法局 | E15: 兴仁市公证处 | F15: 106.5 | G15: 113.5 | H15: 220 | I15: =H15/3 -> 73.33 | J15: 是
A16: 15 | B16: 1152230303403 | C16: 22322420401 | D16: 兴仁市司法局 | E16: 兴仁市公证处 | F16: 91 | G16: 113 | H16: 204 | I16: 68.00 | J16: 是
A17: 16 | B17: 1152230300717 | C17: 22322420401 | D17: 兴仁市司法局 | E17: 兴仁市公证处 | F17: 103 | G17: 101 | H17: 204 | I17: 68.00 | J17: 是
A18: 17 | B18: 1152230304218 | C18: 22322420501 | D18: 兴仁市民政局 | E18: 兴仁市民政事务服务中心 | F18: 114 | G18: 101 | H18: 215 | I18: =H18/3 -> 71.67 | J18: 是
A19: 18 | B19: 1152230301910 | C19: 22322420501 | D19: 兴仁市民政局 | E19: 兴仁市民政事务服务中心 | F19: 110 | G19: 96 | H19: 206 | I19: 68.67 | J19: 是
A20: 19 | B20: 1152230300820 | C20: 22322420501 | D20: 兴仁市民政局 | E20: 兴仁市民政事务服务中心 | F20: 99 | G20: 93 | H20: 192 | I20: 64.00 | J20: 是
A21: 20 | B21: 1152230303905 | C21: 22322420601 | D21: 兴仁市融媒体中心 （兴仁市广播电视台） | E21: 策划部 | F21: 86.5 | G21: 109 | H21: 195.5 | I21: =H21/3 -> 65.17 | J21: 是
A22: 21 | B22: 1152230300402 | C22: 22322420601 | D22: 兴仁市融媒体中心 （兴仁市广播电视台） | E22: 策划部 | F22: 84 | G22: 101 | H22: 185 | I22: 61.67 | J22: 是
A23: 22 | B23: 1152230301017 | C23: 22322420601 | D23: 兴仁市融媒体中心 （兴仁市广播电视台） | E23: 策划部 | F23: 83 | G23: 102 | H23: 185 | I23: 61.67 | J23: 是
A24: 23 | B24: 1152230403920 | C24: 22322420701 | D24: 兴仁市市场监督管理局 | E24: 兴仁市质量技术监督检测所 | F24: 113.5 | G24: 109.5 | H24: 223 | I24: =H24/3 -> 74.33 | J24: 是
A25: 24 | B25: 1152230403005 | C25: 22322420701 | D25: 兴仁市市场监督管理局 | E25: 兴仁市质量技术监督检测所 | F25: 116 | G25: 102 | H25: 218 | I25: 72.67 | J25: 是
A26: 25 | B26: 1152230403419 | C26: 22322420701 | D26: 兴仁市市场监督管理局 | E26: 兴仁市质量技术监督检测所 | F26: 101 | G26: 103 | H26: 204 | I26: 68.00 | J26: 是
A27: 26 | B27: 1152230404807 | C27: 22322420801 | D27: 兴仁市水务局 | E27: 尖山水库管理所 | F27: 104 | G27: 106 | H27: 210 | I27: =H27/3 -> 70.00 | J27: 是
A28: 27 | B28: 1152230403215 | C28: 22322420801 | D28: 兴仁市水务局 | E28: 尖山水库管理所 | F28: 98 | G28: 95 | H28: 193 | I28: 64.33 | J28: 是
A29: 28 | B29: 1152230402411 | C29: 22322420801 | D29: 兴仁市水务局 | E29: 尖山水库管理所 | F29: 87.5 | G29: 99 | H29: 186.5 | I29: 62.17 | J29: 是
A30: 29 | B30: 1152230403013 | C30: 22322420901 | D30: 兴仁市住房和城乡建设局 | E30: 兴仁市住房和城乡建设发展中心 | F30: 111.5 | G30: 111.5 | H30: 223 | I30: 74.33 | J30: 是
A31: 30 | B31: 1152230400117 | C31: 22322420901 | D31: 兴仁市住房和城乡建设局 | E31: 兴仁市住房和城乡建设发展中心 | F31: 104.5 | G31: 100 | H31: 204.5 | I31: 68.17 | J31: 是
A32: 31 | B32: 1152230401021 | C32: 22322420901 | D32: 兴仁市住房和城乡建设局 | E32: 兴仁市住房和城乡建设发展中心 | F32: 93.5 | G32: 101 | H32: 194.5 | I32: 64.83 | J32: 是
A33: 32 | B33: 1152230404718 | C33: 22322421002 | D33: 兴仁市自然资源局 | E33: 雨樟自然资源所 | F33: 94.5 | G33: 96 | H33: 190.5 | I33: =H33/3 -> 63.50 | J33: 是
A34: 33 | B34: 1152230401025 | C34: 22322421002 | D34: 兴仁市自然资源局 | E34: 雨樟自然资源所 | F34: 73.5 | G34: 89.5 | H34: 163 | I34: 54.33 | J34: 是
A35: 34 | B35: 1152230402719 | C35: 22322421002 | D35: 兴仁市自然资源局 | E35: 雨樟自然资源所 | F35: 90.5 | G35: 69 | H35: 159.5 | I35: 53.17 | J35: 是
A36: 35 | B36: 1152230404618 | C36: 22322421101 | D36: 兴仁市人民政府城北街道办事处 | E36: 党务政务服务中心 | F36: 102.5 | G36: 95 | H36: 197.5 | I36: 65.83 | J36: 是
A37: 36 | B37: 1152230403601 | C37: 22322421101 | D37: 兴仁市人民政府城北街道办事处 | E37: 党务政务服务中心 | F37: 90.5 | G37: 104 | H37: 194.5 | I37: 64.83 | J37: 是
A38: 37 | B38: 1152230403227 | C38: 22322421101 | D38: 兴仁市人民政府城北街道办事处 | E38: 党务政务服务中心 | F38: 86.5 | G38: 106.5 | H38: 193 | I38: 64.33 | J38: 是
A39: 38 | B39: 1152230402205 | C39: 22322421102 | D39: 兴仁市人民政府城北街道办事处 | E39: 社区事务服务中心 | F39: 95.5 | G39: 105 | H39: 200.5 | I39: =H39/3 -> 66.83 | J39: 是
A40: 39 | B40: 1152230404428 | C40: 22322421102 | D40: 兴仁市人民政府城北街道办事处 | E40: 社区事务服务中心 | F40: 93.5 | G40: 95 | H40: 188.5 | I40: 62.83 | J40: 是
A41: 40 | B41: 1152230402801 | C41: 22322421102 | D41: 兴仁市人民政府城北街道办事处 | E41: 社区事务服务中心 | F41: 92 | G41: 92 | H41: 184 | I41: 61.33 | J41: 是
A42: 41 | B42: 1152230400907 | C42: 22322421103 | D42: 兴仁市人民政府城北街道办事处 | E42: 社区事务服务中心 | F42: 95.5 | G42: 116 | H42: 211.5 | I42: =H42/3 -> 70.50 | J42: 是
A43: 42 | B43: 1152230401719 | C43: 22322421103 | D43: 兴仁市人民政府城北街道办事处 | E43: 社区事务服务中心 | F43: 101 | G43: 93 | H43: 194 | I43: 64.67 | J43: 是
A44: 43 | B44: 1152230403719 | C44: 22322421103 | D44: 兴仁市人民政府城北街道办事处 | E44: 社区事务服务中心 | F44: 109.5 | G44: 83 | H44: 192.5 | I44: 64.17 | J44: 是
A45: 44 | B45: 1152230402618 | C45: 22322421104 | D45: 兴仁市人民政府城北街道办事处 | E45: 城市综合服务中心 | F45: 93 | G45: 118 | H45: 211 | I45: 70.33 | J45: 是
A46: 45 | B46: 1152230402816 | C46: 22322421104 | D46: 兴仁市人民政府城北街道办事处 | E46: 城市综合服务中心 | F46: 93.5 | G46: 115 | H46: 208.5 | I46: 69.50 | J46: 是
A47: 46 | B47: 1152230402509 | C47: 22322421104 | D47: 兴仁市人民政府城北街道办事处 | E47: 城市综合服务中心 | F47: 99.5 | G47: 102 | H47: 201.5 | I47: 67.17 | J47: 是
A48: 47 | B48: 1152230402615 | C48: 22322421201 | D48: 兴仁市人民政府城南街道办事处 | E48: 社区事务服务中心 | F48: 104.5 | G48: 93 | H48: 197.5 | I48: =H48/3 -> 65.83 | J48: 是
A49: 48 | B49: 1152230401427 | C49: 22322421201 | D49: 兴仁市人民政府城南街道办事处 | E49: 社区事务服务中心 | F49: 80.5 | G49: 97 | H49: 177.5 | I49: 59.17 | J49: 是
A50: 49 | B50: 1152230400110 | C50: 22322421201 | D50: 兴仁市人民政府城南街道办事处 | E50: 社区事务服务中心 | F50: 80.5 | G50: 96 | H50: 176.5 | I50: 58.83 | J50: 是
A51: 50 | B51: 1152230402501 | C51: 22322421202 | D51: 兴仁市人民政府城南街道办事处 | E51: 社区事务服务中心 | F51: 82.5 | G51: 97 | H51: 179.5 | I51: 59.83 | J51: 是
A52: 51 | B52: 1152230400813 | C52: 22322421202 | D52: 兴仁市人民政府城南街道办事处 | E52: 社区事务服务中心 | F52: 74 | G52: 85 | H52: 159 | I52: 53.00 | J52: 是
A53: 52 | B53: 1152230402213 | C53: 22322421203 | D53: 兴仁市人民政府城南街道办事处 | E53: 城市综合服务中心 | F53: 96 | G53: 65 | H53: 161 | I53: 53.67 | J53: 是
A54: 53 | B54: 1152230404828 | C54: 22322421203 | D54: 兴仁市人民政府城南街道办事处 | E54: 城市综合服务中心 | F54: 85 | G54: 71 | H54: 156 | I54: 52.00 | J54: 是
A55: 54 | B55: 1152230402819 | C55: 22322421203 | D55: 兴仁市人民政府城南街道办事处 | E55: 城市综合服务中心 | F55: 80 | G55: 71 | H55: 151 | I55: 50.33 | J55: 是
A56: 55 | B56: 1152230402621 | C56: 22322421301 | D56: 兴仁市人民政府东湖街道办事处 | E56: 城市综合服务中心 | F56: 122 | G56: 100.5 | H56: 222.5 | I56: =H56/3 -> 74.17 | J56: 是
A57: 56 | B57: 1152230402518 | C57: 22322421301 | D57: 兴仁市人民政府东湖街道办事处 | E57: 城市综合服务中心 | F57: 112.5 | G57: 101.5 | H57: 214 | I57: 71.33 | J57: 是
A58: 57 | B58: 1152230404110 | C58: 22322421301 | D58: 兴仁市人民政府东湖街道办事处 | E58: 城市综合服务中心 | F58: 103 | G58: 100 | H58: 203 | I58: 67.67 | J58: 是
A59: 58 | B59: 1152230404330 | C59: 22322421302 | D59: 兴仁市人民政府东湖街道办事处 | E59: 社区事务服务中心 | F59: 99 | G59: 76 | H59: 175 | I59: 58.33 | J59: 是
A60: 59 | B60: 1152230403814 | C60: 22322421302 | D60: 兴仁市人民政府东湖街道办事处 | E60: 社区事务服务中心 | F60: 100 | G60: 73.5 | H60: 173.5 | I60: 57.83 | J60: 是
A61: 60 | B61: 1152230402815 | C61: 22322421302 | D61: 兴仁市人民政府东湖街道办事处 | E61: 社区事务服务中心 | F61: 84 | G61: 80 | H61: 164 | I61: 54.67 | J61: 是
A62: 61 | B62: 1152230401710 | C62: 22322421401 | D62: 兴仁市人民政府陆官街道办事处 | E62: 党务政务服务中心 | F62: 113 | G62: 91 | H62: 204 | I62: =H62/3 -> 68.00 | J62: 是
A63: 62 | B63: 1152230401122 | C63: 22322421401 | D63: 兴仁市人民政府陆官街道办事处 | E63: 党务政务服务中心 | F63: 102 | G63: 101 | H63: 203 | I63: 67.67 | J63: 是
A64: 63 | B64: 1152230400423 | C64: 22322421401 | D64: 兴仁市人民政府陆官街道办事处 | E64: 党务政务服务中心 | F64: 95 | G64: 106 | H64: 201 | I64: 67.00 | J64: 是
A65: 64 | B65: 1152230403323 | C65: 22322421402 | D65: 兴仁市人民政府陆官街道办事处 | E65: 综合治理服务中心 | F65: 98.5 | G65: 99 | H65: 197.5 | I65: =H65/3 -> 65.83 | J65: 是
A66: 65 | B66: 1152230402602 | C66: 22322421402 | D66: 兴仁市人民政府陆官街道办事处 | E66: 综合治理服务中心 | F66: 107.5 | G66: 79 | H66: 186.5 | I66: 62.17 | J66: 是
A67: 66 | B67: 1152230401110 | C67: 22322421402 | D67: 兴仁市人民政府陆官街道办事处 | E67: 综合治理服务中心 | F67: 71.5 | G67: 101 | H67: 172.5 | I67: 57.50 | J67: 是
A68: 67 | B68: 1152230401023 | C68: 22322421402 | D68: 兴仁市人民政府陆官街道办事处 | E68: 综合治理服务中心 | F68: 99.5 | G68: 73 | H68: 172.5 | I68: 57.50 | J68: 是
A69: 68 | B69: 1152230401404 | C69: 22322421501 | D69: 兴仁市人民政府薏品田园街道办事处 | E69: 社区事务服务中心 | F69: 107 | G69: 94 | H69: 201 | I69: 67.00 | J69: 是
A70: 69 | B70: 1152230404720 | C70: 22322421501 | D70: 兴仁市人民政府薏品田园街道办事处 | E70: 社区事务服务中心 | F70: 104.5 | G70: 90.5 | H70: 195 | I70: 65.00 | J70: 是
A71: 70 | B71: 1152230402808 | C71: 22322421501 | D71: 兴仁市人民政府薏品田园街道办事处 | E71: 社区事务服务中心 | F71: 96 | G71: 98 | H71: 194 | I71: 64.67 | J71: 是
A72: 71 | B72: 1152230404716 | C72: 22322421601 | D72: 兴仁市人民政府真武山街道办事处 | E72: 社区事务服务中心 | F72: 106 | G72: 70 | H72: 176 | I72: 58.67 | J72: 是
A73: 72 | B73: 1152230401802 | C73: 22322421601 | D73: 兴仁市人民政府真武山街道办事处 | E73: 社区事务服务中心 | F73: 73 | G73: 90.5 | H73: 163.5 | I73: =H73/3 -> 54.50 | J73: 是
A74: 73 | B74: 1152230400701 | C74: 22322421601 | D74: 兴仁市人民政府真武山街道办事处 | E74: 社区事务服务中心 | F74: 88.5 | G74: 75 | H74: 163.5 | I74: 54.50 | J74: 是
A75: 74 | B75: 1152230401704 | C75: 22322421602 | D75: 兴仁市人民政府真武山街道办事处 | E75: 社区事务服务中心 | F75: 89 | G75: 104 | H75: 193 | I75: 64.33 | J75: 是
A76: 75 | B76: 1152230403304 | C76: 22322421602 | D76: 兴仁市人民政府真武山街道办事处 | E76: 社区事务服务中心 | F76: 103.5 | G76: 82 | H76: 185.5 | I76: 61.83 | J76: 是
A77: 76 | B77: 1152230402828 | C77: 22322421602 | D77: 兴仁市人民政府真武山街道办事处 | E77: 社区事务服务中心 | F77: 91 | G77: 67 | H77: 158 | I77: 52.67 | J77: 是
A78: 77 | B78: 1152230401312 | C78: 22322421701 | D78: 兴仁市巴铃镇人民政府 | E78: 综合治理服务中心 | F78: 93 | G78: 113 | H78: 206 | I78: =H78/3 -> 68.67 | J78: 是
A79: 78 | B79: 1152230401315 | C79: 22322421701 | D79: 兴仁市巴铃镇人民政府 | E79: 综合治理服务中心 | F79: 81.5 | G79: 106.5 | H79: 188 | I79: 62.67 | J79: 是
A80: 79 | B80: 1152230400106 | C80: 22322421701 | D80: 兴仁市巴铃镇人民政府 | E80: 综合治理服务中心 | F80: 86 | G80: 101 | H80: 187 | I80: 62.33 | J80: 是
A81: 80 | B81: 1152230401319 | C81: 22322421702 | D81: 兴仁市巴铃镇人民政府 | E81: 综合治理服务中心 | F81: 101.5 | G81: 108 | H81: 209.5 | I81: 69.83 | J81: 是
A82: 81 | B82: 1152230402812 | C82: 22322421702 | D82: 兴仁市巴铃镇人民政府 | E82: 综合治理服务中心 | F82: 88 | G82: 116.5 | H82: 204.5 | I82: 68.17 | J82: 是
A83: 82 | B83: 1152230404701 | C83: 22322421702 | D83: 兴仁市巴铃镇人民政府 | E83: 综合治理服务中心 | F83: 97 | G83: 102 | H83: 199 | I83: 66.33 | J83: 是
A84: 83 | B84: 1152230400806 | C84: 22322421703 | D84: 兴仁市巴铃镇人民政府 | E84: 农业农村综合服务中心 | F84: 105 | G84: 103 | H84: 208 | I84: =H84/3 -> 69.33 | J84: 是
A85: 84 | B85: 1152230403214 | C85: 22322421703 | D85: 兴仁市巴铃镇人民政府 | E85: 农业农村综合服务中心 | F85: 94.5 | G85: 86 | H85: 180.5 | I85: 60.17 | J85: 是
A86: 85 | B86: 1152230403209 | C86: 22322421703 | D86: 兴仁市巴铃镇人民政府 | E86: 农业农村综合服务中心 | F86: 84 | G86: 73 | H86: 157 | I86: 52.33 | J86: 是
A87: 86 | B87: 1152230400328 | C87: 22322421704 | D87: 兴仁市巴铃镇人民政府 | E87: 产业发展服务中心 | F87: 118 | G87: 85 | H87: 203 | I87: 67.67 | J87: 是
A88: 87 | B88: 1152230404224 | C88: 22322421704 | D88: 兴仁市巴铃镇人民政府 | E88: 产业发展服务中心 | F88: 94 | G88: 100 | H88: 194 | I88: 64.67 | J88: 是
A89: 88 | B89: 1152230404704 | C89: 22322421704 | D89: 兴仁市巴铃镇人民政府 | E89: 产业发展服务中心 | F89: 95.5 | G89: 94.5 | H89: 190 | I89: 63.33 | J89: 是
A90: 89 | B90: 1152230400201 | C90: 22322421801 | D90: 兴仁市百德镇人民政府 | E90: 党务政务服务中心 | F90: 100 | G90: 99 | H90: 199 | I90: =H90/3 -> 66.33 | J90: 是
A91: 90 | B91: 1152230402208 | C91: 22322421801 | D91: 兴仁市百德镇人民政府 | E91: 党务政务服务中心 | F91: 98 | G91: 90.5 | H91: 188.5 | I91: 62.83 | J91: 是
A92: 91 | B92: 1152230403503 | C92: 22322421801 | D92: 兴仁市百德镇人民政府 | E92: 党务政务服务中心 | F92: 92.5 | G92: 92 | H92: 184.5 | I92: 61.50 | J92: 是
A93: 92 | B93: 1152230402705 | C93: 22322421802 | D93: 兴仁市百德镇人民政府 | E93: 综合治理服务中心 | F93: 104.5 | G93: 105 | H93: 209.5 | I93: =H93/3 -> 69.83 | J93: 是
A94: 93 | B94: 1152230402106 | C94: 22322421802 | D94: 兴仁市百德镇人民政府 | E94: 综合治理服务中心 | F94: 103 | G94: 103 | H94: 206 | I94: 68.67 | J94: 是
A95: 94 | B95: 1152230404724 | C95: 22322421802 | D95: 兴仁市百德镇人民政府 | E95: 综合治理服务中心 | F95: 114.5 | G95: 91.5 | H95: 206 | I95: 68.67 | J95: 是
A96: 95 | B96: 1152230403704 | C96: 22322421803 | D96: 兴仁市百德镇人民政府 | E96: 农业农村综合服务中心 | F96: 97.5 | G96: 110 | H96: 207.5 | I96: =H96/3 -> 69.17 | J96: 是
A97: 96 | B97: 1152230401303 | C97: 22322421803 | D97: 兴仁市百德镇人民政府 | E97: 农业农村综合服务中心 | F97: 93 | G97: 108 | H97: 201 | I97: 67.00 | J97: 是
A98: 97 | B98: 1152230402301 | C98: 22322421804 | D98: 兴仁市百德镇人民政府 | E98: 产业发展服务中心 | F98: 93.5 | G98: 100 | H98: 193.5 | I98: 64.50 | J98: 是
A99: 98 | B99: 1152230400713 | C99: 22322421804 | D99: 兴仁市百德镇人民政府 | E99: 产业发展服务中心 | F99: 99.5 | G99: 86 | H99: 185.5 | I99: 61.83 | J99: 是
A100: 99 | B100: 1152230403613 | C100: 22322421804 | D100: 兴仁市百德镇人民政府 | E100: 产业发展服务中心 | F100: 84 | G100: 89 | H100: 173 | I100: 57.67 | J100: 是
A101: 100 | B101: 1152230400905 | C101: 22322421805 | D101: 兴仁市百德镇人民政府 | E101: 产业发展服务中心 | F101: 115.5 | G101: 87.5 | H101: 203 | I101: 67.67 | J101: 是
A102: 101 | B102: 1152230401630 | C102: 22322421805 | D102: 兴仁市百德镇人民政府 | E102: 产业发展服务中心 | F102: 102.5 | G102: 93 | H102: 195.5 | I102: 65.17 | J102: 是
A103: 102 | B103: 1152230400917 | C103: 22322421805 | D103: 兴仁市百德镇人民政府 | E103: 产业发展服务中心 | F103: 99.5 | G103: 95 | H103: 194.5 | I103: 64.83 | J103: 是
A104: 103 | B104: 1152230401701 | C104: 22322421901 | D104: 兴仁市波阳镇人民政府 | E104: 党务政务服务中心 | F104: 96.5 | G104: 90.5 | H104: 187 | I104: =H104/3 -> 62.33 | J104: 是
A105: 104 | B105: 1152230401215 | C105: 22322421901 | D105: 兴仁市波阳镇人民政府 | E105: 党务政务服务中心 | F105: 84.5 | G105: 99.5 | H105: 184 | I105: 61.33 | J105: 是
A106: 105 | B106: 1152230403208 | C106: 22322421901 | D106: 兴仁市波阳镇人民政府 | E106: 党务政务服务中心 | F106: 101.5 | G106: 70 | H106: 171.5 | I106: 57.17 | J106: 是
A107: 106 | B107: 1152230401522 | C107: 22322421903 | D107: 兴仁市波阳镇人民政府 | E107: 农业农村综合服务中心 | F107: 100.5 | G107: 112.5 | H107: 213 | I107: =H107/3 -> 71.00 | J107: 是
A108: 107 | B108: 1152230400814 | C108: 22322421903 | D108: 兴仁市波阳镇人民政府 | E108: 农业农村综合服务中心 | F108: 94 | G108: 102 | H108: 196 | I108: 65.33 | J108: 是
A109: 108 | B109: 1152230403409 | C109: 22322421903 | D109: 兴仁市波阳镇人民政府 | E109: 农业农村综合服务中心 | F109: 79.5 | G109: 110 | H109: 189.5 | I109: 63.17 | J109: 是
A110: 109 | B110: 1152230400721 | C110: 22322422001 | D110: 兴仁市大山镇人民政府 | E110: 党务政务服务中心 | F110: 79.5 | G110: 84 | H110: 163.5 | I110: =H110/3 -> 54.50 | J110: 是
A111: 110 | B111: 1152230401913 | C111: 22322422001 | D111: 兴仁市大山镇人民政府 | E111: 党务政务服务中心 | F111: 85 | G111: 77.5 | H111: 162.5 | I111: 54.17 | J111: 是
A112: 111 | B112: 1152230404015 | C112: 22322422001 | D112: 兴仁市大山镇人民政府 | E112: 党务政务服务中心 | F112: 74.5 | G112: 81.5 | H112: 156 | I112: 52.00 | J112: 是
A113: 112 | B113: 1152230401320 | C113: 22322422002 | D113: 兴仁市大山镇人民政府 | E113: 农业农村综合服务中心 | F113: 95 | G113: 109 | H113: 204 | I113: 68.00 | J113: 是
A114: 113 | B114: 1152230401509 | C114: 22322422002 | D114: 兴仁市大山镇人民政府 | E114: 农业农村综合服务中心 | F114: 97.5 | G114: 102 | H114: 199.5 | I114: 66.50 | J114: 是
A115: 114 | B115: 1152230403229 | C115: 22322422002 | D115: 兴仁市大山镇人民政府 | E115: 农业农村综合服务中心 | F115: 90.5 | G115: 89 | H115: 179.5 | I115: 59.83 | J115: 是
A116: 115 | B116: 1152230401610 | C116: 22322422003 | D116: 兴仁市大山镇人民政府 | E116: 农业农村综合服务中心 | F116: 105.5 | G116: 104 | H116: 209.5 | I116: 69.83 | J116: 是
A117: 116 | B117: 1152230401309 | C117: 22322422003 | D117: 兴仁市大山镇人民政府 | E117: 农业农村综合服务中心 | F117: 98.5 | G117: 92 | H117: 190.5 | I117: 63.50 | J117: 是
A118: 117 | B118: 1152230404601 | C118: 22322422003 | D118: 兴仁市大山镇人民政府 | E118: 农业农村综合服务中心 | F118: 100 | G118: 88 | H118: 188 | I118: 62.67 | J118: 是
A119: 118 | B119: 1152230404211 | C119: 22322422004 | D119: 兴仁市大山镇人民政府 | E119: 产业发展服务中心 | F119: 107.5 | G119: 104.5 | H119: 212 | I119: 70.67 | J119: 是
A120: 119 | B120: 1152230403322 | C120: 22322422004 | D120: 兴仁市大山镇人民政府 | E120: 产业发展服务中心 | F120: 104.5 | G120: 95 | H120: 199.5 | I120: 66.50 | J120: 是
A121: 120 | B121: 1152230404314 | C121: 22322422004 | D121: 兴仁市大山镇人民政府 | E121: 产业发展服务中心 | F121: 95.5 | G121: 95.5 | H121: 191 | I121: 63.67 | J121: 是
A122: 121 | B122: 1152230404820 | C122: 22322422005 | D122: 兴仁市大山镇人民政府 | E122: 综合治理服务中心 | F122: 106 | G122: 110.5 | H122: 216.5 | I122: =H122/3 -> 72.17 | J122: 是
A123: 122 | B123: 1152230402009 | C123: 22322422005 | D123: 兴仁市大山镇人民政府 | E123: 综合治理服务中心 | F123: 92 | G123: 114 | H123: 206 | I123: 68.67 | J123: 是
A124: 123 | B124: 1152230401115 | C124: 22322422005 | D124: 兴仁市大山镇人民政府 | E124: 综合治理服务中心 | F124: 99.5 | G124: 102 | H124: 201.5 | I124: 67.17 | J124: 是
A125: 124 | B125: 1152230502013 | C125: 22322422101 | D125: 兴仁市回龙镇人民政府 | E125: 农业农村综合服务中心 | F125: 106.5 | G125: 98.5 | H125: 205 | I125: =H125/3 -> 68.33 | J125: 是
A126: 125 | B126: 1152230501224 | C126: 22322422101 | D126: 兴仁市回龙镇人民政府 | E126: 农业农村综合服务中心 | F126: 94 | G126: 106 | H126: 200 | I126: 66.67 | J126: 是
A127: 126 | B127: 1152230502512 | C127: 22322422101 | D127: 兴仁市回龙镇人民政府 | E127: 农业农村综合服务中心 | F127: 109.5 | G127: 89 | H127: 198.5 | I127: 66.17 | J127: 是
A128: 127 | B128: 1152230500621 | C128: 22322422102 | D128: 兴仁市回龙镇人民政府 | E128: 农业农村综合服务中心 | F128: 75 | G128: 104 | H128: 179 | I128: 59.67 | J128: 是
A129: 128 | B129: 1152230502216 | C129: 22322422102 | D129: 兴仁市回龙镇人民政府 | E129: 农业农村综合服务中心 | F129: 87 | G129: 78 | H129: 165 | I129: 55.00 | J129: 是
A130: 129 | B130: 1152230501705 | C130: 22322422102 | D130: 兴仁市回龙镇人民政府 | E130: 农业农村综合服务中心 | F130: 90.5 | G130: 74 | H130: 164.5 | I130: 54.83 | J130: 是
A131: 130 | B131: 1152230501704 | C131: 22322422103 | D131: 兴仁市回龙镇人民政府 | E131: 党务政务服务中心 | F131: 84.5 | G131: 72 | H131: 156.5 | I131: 52.17 | J131: 是
A132: 131 | B132: 1152230502830 | C132: 22322422201 | D132: 兴仁市鲁础营回族乡人民政府 | E132: 党务政务服务中心 | F132: 89 | G132: 99 | H132: 188 | I132: 62.67 | J132: 是
A133: 132 | B133: 1152230502022 | C133: 22322422201 | D133: 兴仁市鲁础营回族乡人民政府 | E133: 党务政务服务中心 | F133: 92 | G133: 93 | H133: 185 | I133: 61.67 | J133: 是
A134: 133 | B134: 1152230500118 | C134: 22322422201 | D134: 兴仁市鲁础营回族乡人民政府 | E134: 党务政务服务中心 | F134: 75.5 | G134: 95 | H134: 170.5 | I134: 56.83 | J134: 是
A135: 134 | B135: 1152230500416 | C135: 22322422202 | D135: 兴仁市鲁础营回族乡人民政府 | E135: 党务政务服务中心 | F135: 111.5 | G135: 99 | H135: 210.5 | I135: =H135/3 -> 70.17 | J135: 是
A136: 135 | B136: 1152230501017 | C136: 22322422202 | D136: 兴仁市鲁础营回族乡人民政府 | E136: 党务政务服务中心 | F136: 103 | G136: 106 | H136: 209 | I136: 69.67 | J136: 是
A137: 136 | B137: 1152230502610 | C137: 22322422202 | D137: 兴仁市鲁础营回族乡人民政府 | E137: 党务政务服务中心 | F137: 104 | G137: 89 | H137: 193 | I137: 64.33 | J137: 是
A138: 137 | B138: 1152230501422 | C138: 22322422203 | D138: 兴仁市鲁础营回族乡人民政府 | E138: 农业农村综合服务中心 | F138: 95 | G138: 98.5 | H138: 193.5 | I138: =H138/3 -> 64.50 | J138: 是
A139: 138 | B139: 1152230500412 | C139: 22322422203 | D139: 兴仁市鲁础营回族乡人民政府 | E139: 农业农村综合服务中心 | F139: 75.5 | G139: 99 | H139: 174.5 | I139: =H139/3 -> 58.17 | J139: 是
A140: 139 | B140: 1152230500919 | C140: 22322422203 | D140: 兴仁市鲁础营回族乡人民政府 | E140: 农业农村综合服务中心 | F140: 76 | G140: 85 | H140: 161 | I140: 53.67 | J140: 是
A141: 140 | B141: 1152230500716 | C141: 22322422204 | D141: 兴仁市鲁础营回族乡人民政府 | E141: 农业农村综合服务中心 | F141: 65 | G141: 87.5 | H141: 152.5 | I141: 50.83 | J141: 是
A142: 141 | B142: 1152230501320 | C142: 22322422301 | D142: 兴仁市马马崖镇人民政府 | E142: 农业农村综合服务中心 | F142: 93 | G142: 114 | H142: 207 | I142: 69.00 | J142: 是
A143: 142 | B143: 1152230500411 | C143: 22322422301 | D143: 兴仁市马马崖镇人民政府 | E143: 农业农村综合服务中心 | F143: 89.5 | G143: 92 | H143: 181.5 | I143: 60.50 | J143: 是
A144: 143 | B144: 1152230502411 | C144: 22322422301 | D144: 兴仁市马马崖镇人民政府 | E144: 农业农村综合服务中心 | F144: 83 | G144: 82 | H144: 165 | I144: 55.00 | J144: 是
A145: 144 | B145: 1152230500523 | C145: 22322422302 | D145: 兴仁市马马崖镇人民政府 | E145: 农业农村综合服务中心 | F145: 111.5 | G145: 102 | H145: 213.5 | I145: =H145/3 -> 71.17 | J145: 是
A146: 145 | B146: 1152230500425 | C146: 22322422302 | D146: 兴仁市马马崖镇人民政府 | E146: 农业农村综合服务中心 | F146: 101 | G146: 107 | H146: 208 | I146: 69.33 | J146: 是
A147: 146 | B147: 1152230500208 | C147: 22322422302 | D147: 兴仁市马马崖镇人民政府 | E147: 农业农村综合服务中心 | F147: 94.5 | G147: 93 | H147: 187.5 | I147: 62.50 | J147: 是
A148: 147 | B148: 1152230501327 | C148: 22322422303 | D148: 兴仁市马马崖镇人民政府 | E148: 农业农村综合服务中心 | F148: 65 | G148: 95 | H148: 160 | I148: =H148/3 -> 53.33 | J148: 是
A149: 148 | B149: 1152230500510 | C149: 22322422304 | D149: 兴仁市马马崖镇人民政府 | E149: 农业农村综合服务中心 | F149: 85.5 | G149: 103 | H149: 188.5 | I149: 62.83 | J149: 是
A150: 149 | B150: 1152230502520 | C150: 22322422304 | D150: 兴仁市马马崖镇人民政府 | E150: 农业农村综合服务中心 | F150: 88 | G150: 99 | H150: 187 | I150: 62.33 | J150: 是
A151: 150 | B151: 1152230502516 | C151: 22322422304 | D151: 兴仁市马马崖镇人民政府 | E151: 农业农村综合服务中心 | F151: 102.5 | G151: 75.5 | H151: 178 | I151: 59.33 | J151: 是
A152: 151 | B152: 1152230502312 | C152: 22322422305 | D152: 兴仁市马马崖镇人民政府 | E152: 农业农村综合服务中心 | F152: 92 | G152: 104 | H152: 196 | I152: 65.33 | J152: 是
A153: 152 | B153: 1152230501730 | C153: 22322422305 | D153: 兴仁市马马崖镇人民政府 | E153: 农业农村综合服务中心 | F153: 77 | G153: 111 | H153: 188 | I153: 62.67 | J153: 是
A154: 153 | B154: 1152230500226 | C154: 22322422305 | D154: 兴仁市马马崖镇人民政府 | E154: 农业农村综合服务中心 | F154: 82.5 | G154: 93 | H154: 175.5 | I154: 58.50 | J154: 是
A155: 154 | B155: 1152230500711 | C155: 22322422401 | D155: 兴仁市潘家庄镇人民政府 | E155: 农业农村综合服务中心 | F155: 83.5 | G155: 89 | H155: 172.5 | I155: =H155/3 -> 57.50 | J155: 是
A156: 155 | B156: 1152230501325 | C156: 22322422401 | D156: 兴仁市潘家庄镇人民政府 | E156: 农业农村综合服务中心 | F156: 68.5 | G156: 93 | H156: 161.5 | I156: 53.83 | J156: 是
A157: 156 | B157: 1152230502208 | C157: 22322422402 | D157: 兴仁市潘家庄镇人民政府 | E157: 农业农村综合服务中心 | F157: 82.5 | G157: 95 | H157: 177.5 | I157: 59.17 | J157: 是
A158: 157 | B158: 1152230500129 | C158: 22322422402 | D158: 兴仁市潘家庄镇人民政府 | E158: 农业农村综合服务中心 | F158: 81 | G158: 81 | H158: 162 | I158: 54.00 | J158: 是
A159: 158 | B159: 1152230500310 | C159: 22322422402 | D159: 兴仁市潘家庄镇人民政府 | E159: 农业农村综合服务中心 | F159: 74.5 | G159: 81.5 | H159: 156 | I159: 52.00 | J159: 是
A160: 159 | B160: 1152230500230 | C160: 22322422403 | D160: 兴仁市潘家庄镇人民政府 | E160: 综合治理服务中心 | F160: 70.5 | G160: 94 | H160: 164.5 | I160: 54.83 | J160: 是
A161: 160 | B161: 1152230502218 | C161: 22322422403 | D161: 兴仁市潘家庄镇人民政府 | E161: 综合治理服务中心 | F161: 85.5 | G161: 78 | H161: 163.5 | I161: 54.50 | J161: 是
A162: 161 | B162: 1152230502012 | C162: 22322422501 | D162: 兴仁市屯脚镇人民政府 | E162: 党务政务服务中心 | F162: 107.5 | G162: 110 | H162: 217.5 | I162: 72.50 | J162: 是
A163: 162 | B163: 1152230500920 | C163: 22322422501 | D163: 兴仁市屯脚镇人民政府 | E163: 党务政务服务中心 | F163: 100.5 | G163: 99 | H163: 199.5 | I163: 66.50 | J163: 是
A164: 163 | B164: 1152230502426 | C164: 22322422501 | D164: 兴仁市屯脚镇人民政府 | E164: 党务政务服务中心 | F164: 97 | G164: 101 | H164: 198 | I164: 66.00 | J164: 是
A165: 164 | B165: 1152230600707 | C165: 22322422502 | D165: 兴仁市屯脚镇人民政府 | E165: 党务政务服务中心 | F165: 114 | G165: 104 | H165: 218 | I165: =H165/3 -> 72.67 | J165: 是
A166: 165 | B166: 1152230603303 | C166: 22322422502 | D166: 兴仁市屯脚镇人民政府 | E166: 党务政务服务中心 | F166: 98 | G166: 108 | H166: 206 | I166: 68.67 | J166: 是
A167: 166 | B167: 1152230603608 | C167: 22322422502 | D167: 兴仁市屯脚镇人民政府 | E167: 党务政务服务中心 | F167: 104.5 | G167: 100 | H167: 204.5 | I167: 68.17 | J167: 是
A168: 167 | B168: 1152230602019 | C168: 22322422503 | D168: 兴仁市屯脚镇人民政府 | E168: 农业农村综合服务中心 | F168: 80.5 | G168: 85 | H168: 165.5 | I168: =H168/3 -> 55.17 | J168: 是
A169: 168 | B169: 1152230604519 | C169: 22322422503 | D169: 兴仁市屯脚镇人民政府 | E169: 农业农村综合服务中心 | F169: 87 | G169: 73 | H169: 160 | I169: 53.33 | J169: 是
A170: 169 | B170: 1152230600415 | C170: 22322422503 | D170: 兴仁市屯脚镇人民政府 | E170: 农业农村综合服务中心 | F170: 58.5 | G170: 91 | H170: 149.5 | I170: 49.83 | J170: 是
A171: 170 | B171: 1152230601817 | C171: 22322422503 | D171: 兴仁市屯脚镇人民政府 | E171: 农业农村综合服务中心 | F171: 64 | G171: 85.5 | H171: 149.5 | I171: 49.83 | J171: 是
A172: 171 | B172: 1152230603108 | C172: 22322422504 | D172: 兴仁市屯脚镇人民政府 | E172: 农业农村综合服务中心 | F172: 81.5 | G172: 102 | H172: 183.5 | I172: 61.17 | J172: 是
A173: 172 | B173: 1152230600119 | C173: 22322422504 | D173: 兴仁市屯脚镇人民政府 | E173: 农业农村综合服务中心 | F173: 84.5 | G173: 69 | H173: 153.5 | I173: 51.17 | J173: 是
A174: 173 | B174: 1152230604323 | C174: 22322422504 | D174: 兴仁市屯脚镇人民政府 | E174: 农业农村综合服务中心 | F174: 75.5 | G174: 65 | H174: 140.5 | I174: 46.83 | J174: 是
A175: 174 | B175: 1152230602028 | C175: 22322422601 | D175: 兴仁市下山镇人民政府 | E175: 综合治理服务中心 | F175: 117.5 | G175: 91 | H175: 208.5 | I175: 69.50 | J175: 是
A176: 175 | B176: 1152230604116 | C176: 22322422601 | D176: 兴仁市下山镇人民政府 | E176: 综合治理服务中心 | F176: 87.5 | G176: 94.5 | H176: 182 | I176: 60.67 | J176: 是
A177: 176 | B177: 1152230602307 | C177: 22322422601 | D177: 兴仁市下山镇人民政府 | E177: 综合治理服务中心 | F177: 88.5 | G177: 91 | H177: 179.5 | I177: 59.83 | J177: 是
A178: 177 | B178: 1152230600708 | C178: 22322422602 | D178: 兴仁市下山镇人民政府 | E178: 产业发展服务中心 | F178: 72.5 | G178: 93 | H178: 165.5 | I178: =H178/3 -> 55.17 | J178: 是
A179: 178 | B179: 1152230602808 | C179: 22322422602 | D179: 兴仁市下山镇人民政府 | E179: 产业发展服务中心 | F179: 88.5 | G179: 77 | H179: 165.5 | I179: 55.17 | J179: 是
A180: 179 | B180: 1152230601901 | C180: 22322422602 | D180: 兴仁市下山镇人民政府 | E180: 产业发展服务中心 | F180: 78.5 | G180: 85 | H180: 163.5 | I180: 54.50 | J180: 是
A181: 180 | B181: 1152230601724 | C181: 22322422604 | D181: 兴仁市下山镇人民政府 | E181: 产业发展服务中心 | F181: 119 | G181: 107 | H181: 226 | I181: 75.33 | J181: 是
A182: 181 | B182: 1152230604804 | C182: 22322422604 | D182: 兴仁市下山镇人民政府 | E182: 产业发展服务中心 | F182: 95 | G182: 103 | H182: 198 | I182: 66.00 | J182: 是
A183: 182 | B183: 1152230602518 | C183: 22322422604 | D183: 兴仁市下山镇人民政府 | E183: 产业发展服务中心 | F183: 88.5 | G183: 108 | H183: 196.5 | I183: 65.50 | J183: 是
A184: 183 | B184: 1152230600617 | C184: 22322422605 | D184: 兴仁市下山镇人民政府 | E184: 农业农村综合服务中心 | F184: 98.5 | G184: 79 | H184: 177.5 | I184: =H184/3 -> 59.17 | J184: 是
A185: 184 | B185: 1152230602827 | C185: 22322422605 | D185: 兴仁市下山镇人民政府 | E185: 农业农村综合服务中心 | F185: 78 | G185: 91.5 | H185: 169.5 | I185: 56.50 | J185: 是
A186: 185 | B186: 1152230603423 | C186: 22322422605 | D186: 兴仁市下山镇人民政府 | E186: 农业农村综合服务中心 | F186: 82 | G186: 86.5 | H186: 168.5 | I186: 56.17 | J186: 是
A187: 186 | B187: 1152230602621 | C187: 22322422606 | D187: 兴仁市下山镇人民政府 | E187: 农业农村综合服务中心 | F187: 96 | G187: 88.5 | H187: 184.5 | I187: =H187/3 -> 61.50 | J187: 是
A188: 187 | B188: 1152230604427 | C188: 22322422606 | D188: 兴仁市下山镇人民政府 | E188: 农业农村综合服务中心 | F188: 82 | G188: 85 | H188: 167 | I188: 55.67 | J188: 是
A189: 188 | B189: 1152230602104 | C189: 22322422606 | D189: 兴仁市下山镇人民政府 | E189: 农业农村综合服务中心 | F189: 70 | G189: 90.5 | H189: 160.5 | I189: 53.50 | J189: 是
A190: 189 | B190: 1152230601222 | C190: 22322422606 | D190: 兴仁市下山镇人民政府 | E190: 农业农村综合服务中心 | F190: 80.5 | G190: 80 | H190: 160.5 | I190: 53.50 | J190: 是
A191: 190 | B191: 1152230600417 | C191: 22322422606 | D191: 兴仁市下山镇人民政府 | E191: 农业农村综合服务中心 | F191: 90.5 | G191: 70 | H191: 160.5 | I191: 53.50 | J191: 是
A192: 191 | B192: 1152230603616 | C192: 22322422606 | D192: 兴仁市下山镇人民政府 | E192: 农业农村综合服务中心 | F192: 72 | G192: 75 | H192: 147 | I192: 49.00 | J192: 是
A193: 192 | B193: 1152230602712 | C193: 22322422606 | D193: 兴仁市下山镇人民政府 | E193: 农业农村综合服务中心 | F193: 64 | G193: 76 | H193: 140 | I193: 46.67 | J193: 是
A194: 193 | B194: 1152230602904 | C194: 22322422607 | D194: 兴仁市下山镇人民政府 | E194: 农业农村综合服务中心 | F194: 113.5 | G194: 95 | H194: 208.5 | I194: 69.50 | J194: 是
A195: 194 | B195: 1152230604314 | C195: 22322422607 | D195: 兴仁市下山镇人民政府 | E195: 农业农村综合服务中心 | F195: 114.5 | G195: 92 | H195: 206.5 | I195: 68.83 | J195: 是
A196: 195 | B196: 1152230601422 | C196: 22322422607 | D196: 兴仁市下山镇人民政府 | E196: 农业农村综合服务中心 | F196: 108.5 | G196: 90 | H196: 198.5 | I196: 66.17 | J196: 是
A197: 196 | B197: 1152230602912 | C197: 22322422608 | D197: 兴仁市下山镇人民政府 | E197: 农业农村综合服务中心 | F197: 105 | G197: 95 | H197: 200 | I197: 66.67 | J197: 是
A198: 197 | B198: 1152230602504 | C198: 22322422608 | D198: 兴仁市下山镇人民政府 | E198: 农业农村综合服务中心 | F198: 117.5 | G198: 74 | H198: 191.5 | I198: 63.83 | J198: 是
A199: 198 | B199: 1152230602802 | C199: 22322422608 | D199: 兴仁市下山镇人民政府 | E199: 农业农村综合服务中心 | F199: 75 | G199: 108.5 | H199: 183.5 | I199: 61.17 | J199: 是
A200: 199 | B200: 1152230601601 | C200: 22322422701 | D200: 兴仁市新龙场镇人民政府 | E200: 农业农村综合服务中心 | F200: 85.5 | G200: 90 | H200: 175.5 | I200: =H200/3 -> 58.50 | J200: 是
... 165 more rows
